bitfinex-derivatives/quotes_ETHF0:USTF0_20250830
["timestamp","ask_amount","ask_price","bid_price","bid_amount"]
[1756596450985,0.4864,4376.0,4375.9,0.4841]
[1756596453382,0.4864,4376.0,4375.9,0.2839]
[1756596454186,0.4864,4376.0,4375.9,0.4841]
[1756596457287,0.4864,4376.0,4375.2,32.924]
[1756596457496,0.1942,4376.0,4375.9,0.5055]
[1756596457987,0.4836,4376.0,4375.9,0.5055]
[1756596464192,0.4836,4376.0,4375.2,32.924]
[1756596464400,0.4949,4375.4,4375.3,0.3043]
[1756596464899,0.4949,4375.4,4375.3,0.5055]
[1756596466700,0.4949,4375.4,4374.6,3.2078]
[1756596467001,0.4949,4374.8,4374.7,0.7355]
[1756596467200,0.2894,4375.5,4374.8,0.3043]
[1756596467399,0.2894,4375.5,4374.7,0.23]
[1756596467400,0.2894,4375.5,4375.4,0.5055]
[1756596467605,3.7027,4375.6,4375.5,0.5055]
[1756596469906,3.2078,4375.6,4375.5,0.5055]
[1756596470105,0.2894,4375.9,4375.5,0.2012]
[1756596470297,0.2055,4375.7,4375.6,0.5055]
[1756596470605,0.4949,4375.7,4375.6,0.5055]
[1756596472506,3.4378,4376.2,4375.6,0.2012]
[1756596472706,3.4378,4376.2,4375.4,3.2078]
[1756596472707,0.4949,4376.1,4376.0,0.5055]
[1756596475404,0.2894,4376.0,4375.5,0.3043]
[1756596475597,0.4949,4375.6,4375.5,0.5055]
[1756596477805,0.4949,4375.6,4375.5,0.7355]
[1756596480705,3.2078,4376.2,4375.6,0.3043]
[1756596480902,0.4949,4376.1,4376.0,0.5055]
[1756596482806,0.4949,4376.1,4375.6,0.3043]
[1756596484306,0.4949,4376.1,4375.5,0.23]
[1756596484506,0.4949,4376.1,4375.6,0.3043]
[1756596487507,1.22814568,4377.1,4376.0,0.2012]
[1756596487705,14.37,4380.2,4375.4,3.2078]
[1756596487706,2.87558516,4379.4,4377.2,3.2078]
[1756596487906,0.1,4380.2,4379.2,3.2078]
[1756596488103,0.5022,4379.9,4379.8,3.2078]
[1756596488306,0.3071,4380.1,4379.8,3.2078]
[1756596488510,0.3071,4380.1,4380.0,0.81052645]
[1756596488712,0.1,4380.2,4379.8,3.2078]
[1756596488912,0.1,4380.2,4379.9,1.21578967]
[1756596489114,0.1,4380.2,4380.0,1.21578967]
[1756596489313,10.6118301,4380.1,4380.0,0.60639513]
[1756596489518,11.1140301,4380.1,4380.0,0.84939513]
[1756596489814,0.5022,4380.1,4380.0,0.84939513]
[1756596490213,0.5022,4380.1,4380.0,0.243]
[1756596490615,0.5022,4380.1,4379.8,3.81419513]
[1756596490815,0.5022,4379.9,4379.8,3.81419513]
[1756596491017,0.5022,4379.9,4379.8,3.4508]
[1756596491018,11.1140301,4379.9,4379.8,3.4508]
[1756596491620,11.1140301,4379.9,4379.8,3.2078]
[1756596493714,14.8069301,4379.9,4379.6,0.242]
[1756596493915,0.5022,4379.4,4379.3,3.4498]
[1756596494113,11.1140301,4379.4,4379.3,3.4498]
[1756596494325,10.8069301,4379.4,4378.8,3.2078]
[1756596494522,0.5022,4378.9,4378.8,3.4498]
[1756596494814,0.5022,4378.9,4378.8,3.2078]
[1756596494815,11.1140301,4378.9,4378.8,3.2078]
[1756596497528,11.13229694,4378.9,4378.8,3.2078]
[1756596498325,11.14434545,4378.9,4378.8,3.2078]
[1756596499522,11.15156611,4378.9,4378.8,3.2078]
[1756596506236,0.03753601,4378.9,4378.8,3.4488]
[1756596506439,0.53973601,4378.9,4378.8,3.2078]
[1756596506635,11.15156611,4378.9,4378.8,3.2078]
[1756596506830,0.1951,4377.7,4377.3,4.01618181]
[1756596507036,0.3071,4377.5,4377.4,0.241]
[1756596507242,0.5022,4377.5,4377.4,0.241]
[1756596507437,0.03753601,4377.5,4376.9,32.901]
[1756596507634,0.53973601,4377.5,4377.0,0.241]
[1756596507835,0.23263601,4377.5,4376.9,32.901]
[1756596508035,0.1951,4377.2,4377.1,0.241]
[1756596508236,0.3071,4377.1,4376.9,32.901]
[1756596508438,0.1951,4377.1,4377.0,0.20346399]
[1756596508643,0.3071,4377.0,4376.9,32.901]
[1756596508843,0.3071,4377.0,4376.9,33.142]
[1756596509543,0.3071,4377.0,4376.9,32.901]
[1756596509739,0.3071,4377.0,4376.9,33.142]
[1756596509940,3.2078,4377.6,4376.9,33.142]
[1756596509941,0.3071,4377.5,4376.9,33.142]
[1756596510242,0.3071,4377.3,4376.9,33.142]
[1756596510543,3.58983497,4377.4,4376.9,33.142]
[1756596510744,0.3071,4377.3,4376.9,33.142]
[1756596511248,0.1951,4377.0,4376.7,3.2078]
[1756596511541,0.22,4377.9,4376.8,0.241]
[1756596511542,0.3071,4377.1,4376.8,0.241]
[1756596511737,3.78493497,4377.2,4376.9,0.241]
[1756596511935,0.5022,4377.1,4377.0,0.241]
[1756596513040,0.5022,4377.1,4376.2,4.01618181]
[1756596513041,4.09203497,4377.1,4376.2,4.01618181]
[1756596513242,0.1951,4377.1,4376.3,1.04938181]
[1756596513446,0.1951,4376.4,4376.3,1.04938181]
[1756596513744,0.3071,4376.2,4376.0,0.80838181]
[1756596513951,0.5022,4376.0,4375.9,0.80838181]
[1756596514240,4.09203497,4376.5,4375.9,1.04938181]
[1756596514433,3.78493497,4376.5,4376.0,0.80838181]
[1756596514635,3.2078,4377.1,4376.2,0.80838181]
[1756596514838,0.3071,4376.6,4376.3,0.241]
[1756596515234,0.3071,4376.6,4376.3,1.04938181]
[1756596515433,3.2078,4377.1,4376.3,1.04938181]
[1756596515644,0.3071,4376.6,4376.3,1.04938181]
[1756596515938,3.2078,4377.1,4376.3,1.04938181]
[1756596516142,3.78493497,4376.7,4376.3,1.04938181]
[1756596516341,3.58983497,4376.7,4376.3,1.04938181]
[1756596516546,0.3071,4376.6,4376.3,1.04938181]
[1756596516749,0.3071,4376.7,4376.3,1.04938181]
[1756596517046,0.5022,4377.0,4376.3,1.04938181]
[1756596517341,0.2864,4376.8,4376.7,0.0025]
[1756596517645,0.2864,4376.8,4376.7,0.2441]
[1756596517847,0.4763,4376.8,4376.7,0.2441]
[1756596519045,4.06613497,4376.8,4376.7,0.24]
[1756596519247,4.06613497,4376.8,4376.5,0.80838181]
[1756596519447,0.4763,4376.6,4376.5,0.80838181]
[1756596519647,0.4763,4376.6,4376.5,1.04838181]
[1756596520746,0.4763,4376.6,4376.5,1.05248181]
[1756596521252,0.4763,4376.6,4376.5,0.2441]
[1756596521646,0.1899,4376.6,4376.5,1.05164911]
[1756596521846,0.4763,4376.6,4376.5,1.05164911]
[1756596522145,0.4763,4376.6,4376.5,0.24]
[1756596522341,0.4763,4376.6,4376.5,0.2425]
[1756596522544,0.4763,4376.6,4376.5,0.2441]
[1756596524251,0.4763,4376.6,4376.5,1.45988967]
[1756596525654,0.4763,4376.6,4376.5,1.21988967]
[1756596525852,0.4763,4376.6,4376.5,1.45988967]
[1756596527759,0.4763,4376.6,4376.5,1.21988967]
[1756596528161,0.4763,4376.6,4376.5,1.45888967]
[1756596529263,0.4763,4376.6,4376.5,0.2431]
[1756596529462,0.4763,4376.6,4376.5,1.46248105]
[1756596529762,0.4763,4376.6,4376.5,1.45838105]
[1756596530359,0.4763,4376.6,4376.5,0.2406]
[1756596530760,0.4763,4376.6,4376.5,0.2431]
[1756596532958,0.4763,4376.6,4376.1,4.82144721]
[1756596533158,4.06613497,4376.6,4376.5,0.239]
[1756596534863,0.2864,4376.2,4376.1,1.61364721]
[1756596535068,0.4763,4376.2,4376.1,1.85264721]
[1756596535269,4.06613497,4376.2,4376.1,1.61364721]
[1756596535467,4.06613497,4376.2,4376.1,0.239]
[1756596536571,0.4763,4376.0,4375.9,1.61364721]
[1756596536770,0.4763,4376.0,4375.9,0.239]
[1756596537760,0.4763,4376.0,4375.8,1.61364721]
[1756596537761,0.4763,4375.9,4375.8,1.61364721]
[1756596537972,0.4763,4375.9,4375.8,1.85264721]
[1756596539272,0.4763,4375.9,4375.8,0.239]
[1756596540065,4.06613497,4375.9,4375.8,0.239]
[1756596540371,0.4763,4375.8,4375.7,0.0041]
[1756596540769,0.1899,4375.5,4375.4,2.03765614]
[1756596540971,0.4763,4375.2,4375.1,2.04175614]
[1756596541169,0.4763,4375.2,4375.1,0.2405]
[1756596541569,0.4763,4375.1,4375.0,1.63232955]
[1756596541768,0.4763,4375.1,4375.0,0.238]
[1756596542674,4.06613497,4375.1,4375.0,0.238]
[1756596543270,0.1899,4374.8,4374.6,4.84012955]
[1756596543473,0.4763,4374.7,4374.6,4.84422955]
[1756596543972,0.4763,4374.7,4374.6,5.08222955]
[1756596544166,0.4763,4375.5,4375.4,0.0025]
[1756596544366,0.4763,4375.5,4375.4,0.2421]
[1756596553690,0.4763,4375.5,4375.4,0.238]
[1756596554392,0.4969,4375.4,4375.3,1.63061623]
[1756596554590,0.4969,4375.4,4375.3,1.86861623]
[1756596554993,0.4969,4375.4,4375.3,0.238]
[1756596555394,0.4969,4375.4,4375.3,1.86861623]
[1756596556394,3.2078,4376.2,4375.3,1.87141623]
[1756596556597,4.08673497,4375.9,4375.8,0.0028]
[1756596556897,4.08673497,4375.9,4375.8,0.2398]
[1756596557596,4.08673497,4375.9,4375.8,5.07821623]
[1756596558093,0.4969,4375.9,4375.8,5.07821623]
[1756596559596,0.4969,4375.9,4375.8,4.84121623]
[1756596559895,0.4969,4375.9,4375.8,5.07821623]
[1756596561896,4.08673497,4375.9,4375.8,5.07541623]
[1756596563493,4.08673497,4375.9,4375.8,5.07621623]
[1756596563694,4.08673497,4375.9,4375.8,5.07751623]
[1756596564197,4.08673497,4375.9,4375.8,3.4469]
[1756596565499,4.08673497,4375.9,4375.8,5.07568916]
[1756596565793,4.08673497,4375.9,4375.8,3.2078]
[1756596565998,4.08673497,4375.9,4375.8,3.4448]
[1756596570301,4.08673497,4375.9,4375.8,3.2078]
[1756596570503,4.08673497,4375.9,4375.8,3.4448]
[1756596572901,4.08673497,4375.9,4375.8,3.4469]
[1756596573097,3.89273497,4375.9,4375.8,3.4469]
[1756596573296,3.89273497,4375.9,4375.8,5.07778916]
[1756596573599,0.236,4376.7,4375.9,0.0008]
[1756596573805,0.4969,4376.2,4376.1,0.0021]
[1756596574291,0.4969,4376.2,4376.1,1.63324008]
[1756596574492,0.4969,4376.2,4376.1,0.0021]
[1756596576195,0.4969,4376.2,4376.1,1.63324008]
[1756596576691,0.4969,4376.2,4376.1,0.0021]
[1756596578199,0.4969,4376.2,4376.0,1.86714008]
[1756596578393,0.236,4376.7,4376.0,1.86714008]
[1756596578394,4.06873497,4376.1,4376.0,1.86714008]
[1756596579099,4.06873497,4376.1,4376.0,1.86814008]
[1756596579702,4.06873497,4376.1,4376.0,1.86974008]
[1756596582801,4.06873497,4376.1,4376.0,5.07754008]
[1756596583307,4.06873497,4376.1,4376.0,3.4464]
[1756596584101,4.06873497,4376.1,4376.0,3.2104]
[1756596584301,4.06873497,4376.1,4376.0,3.4464]
[1756596585804,4.06873497,4376.1,4376.0,3.4438]
[1756596588212,4.06873497,4376.1,4376.0,3.4448]
[1756596588512,4.06873497,4376.1,4376.0,3.4464]
[1756596588709,4.06873497,4376.1,4376.0,3.4438]
[1756596589012,4.06873497,4376.1,4376.0,3.2078]
[1756596589212,4.06873497,4376.1,4376.0,3.4428]
[1756596589712,4.06873497,4376.1,4376.0,5.07536592]
[1756596590715,4.06873497,4376.1,4376.0,4.84036592]
[1756596590915,4.06873497,4376.1,4376.0,5.07536592]
[1756596596621,4.06873497,4376.1,4376.0,5.07796592]
[1756596596825,4.06873497,4376.1,4376.0,5.07536592]
[1756596598317,4.06873497,4376.1,4376.0,3.4428]
[1756596598818,4.06873497,4376.1,4376.0,3.2078]
[1756596599017,4.06873497,4376.1,4376.0,5.07569991]
[1756596599217,0.4789,4376.1,4376.0,5.07569991]
[1756596599918,4.06873497,4376.1,4376.0,4.84069991]
[1756596600115,4.06873497,4376.1,4376.0,3.2078]
[1756596600322,0.1973,4375.9,4375.5,0.235]
[1756596600523,0.4789,4375.6,4375.5,0.235]
[1756596601019,0.1973,4375.6,4374.8,3.2088]
[1756596601219,0.1973,4375.6,4374.9,0.235]
[1756596601421,0.1973,4375.6,4375.0,0.001]
[1756596601619,0.2816,4375.5,4375.1,0.235]
[1756596601920,0.4789,4375.2,4375.1,0.235]
[1756596602122,0.4789,4375.2,4374.9,0.001]
[1756596602322,0.4789,4375.2,4375.0,0.235]
[1756596602515,0.4789,4375.2,4375.0,0.236]
[1756596602920,0.4789,4375.2,4375.1,0.001]
[1756596603222,0.4789,4375.2,4375.0,0.235]
[1756596603921,0.4789,4375.2,4375.1,0.235]
[1756596603922,0.1973,4375.2,4375.1,0.235]
[1756596604323,0.1973,4375.2,4374.8,3.2088]
[1756596604526,0.4789,4374.9,4374.8,3.2088]
[1756596604727,0.4789,4374.9,4374.8,3.4438]
[1756596605024,0.4789,4374.9,4374.8,3.4454]
[1756596605622,0.4789,4374.9,4374.8,3.2104]
[1756596605824,0.4789,4374.9,4374.8,3.4454]
[1756596606531,0.235,4375.9,4373.7,2.89188071]
[1756596606532,0.1973,4374.5,4374.4,0.0026]
[1756596606828,0.4789,4374.5,4374.4,0.2376]
[1756596609129,0.4781,4374.4,4374.3,3.2078]
[1756596609329,0.4781,4374.4,4374.3,3.4418]
[1756596610533,0.4781,4374.4,4374.3,3.2078]
[1756596610828,0.4781,4374.4,4374.3,0.2352]
[1756596612029,0.2907,4375.2,4374.3,5.30165685]
[1756596612331,0.2907,4375.2,4374.4,0.22858]
[1756596612531,0.4781,4375.2,4375.1,0.0012]
[1756596612832,0.4781,4375.2,4375.1,0.2362]
[1756596613731,0.4781,4375.2,4375.1,3.444]
[1756596614120,0.4781,4375.2,4375.1,0.2362]
[1756596614321,0.4781,4375.2,4375.1,0.0012]
[1756596614526,0.4781,4375.2,4375.1,0.2352]
[1756596614926,0.2907,4376.2,4375.1,0.2352]
[1756596615133,0.51923,4376.2,4375.1,0.2352]
[1756596615336,0.22854001,4376.1,4375.1,0.2352]
[1756596615534,0.2907,4376.0,4375.1,0.2352]
[1756596615732,0.2907,4376.2,4375.9,0.0012]
[1756596615925,0.2907,4376.2,4376.1,0.0012]
[1756596616739,0.4781,4376.2,4376.1,0.0012]
[1756596616930,0.4781,4376.2,4376.1,0.2352]
[1756596619830,0.4781,4376.2,4376.1,3.443]
[1756596620136,0.2907,4376.2,4376.1,3.443]
[1756596620337,0.2907,4376.2,4376.1,0.2352]
[1756596620338,0.4781,4376.2,4376.1,0.2352]
[1756596620525,0.4781,4376.2,4375.5,3.2078]
[1756596620728,0.4781,4376.1,4376.0,3.209]
[1756596620926,0.4781,4376.1,4376.0,3.443]
[1756596621130,0.4781,4376.1,4376.0,3.209]
[1756596621337,0.4781,4376.1,4376.0,3.443]
[1756596621839,0.2907,4376.8,4376.0,3.443]
[1756596622033,3.2078,4376.9,4376.0,3.443]
[1756596622434,0.2907,4376.8,4376.0,3.443]
[1756596622738,3.2078,4376.9,4376.0,3.443]
[1756596623135,0.2907,4376.8,4376.0,3.443]
[1756596624239,3.2078,4376.9,4376.0,3.443]
[1756596624640,0.2907,4376.8,4376.0,3.443]
[1756596624835,3.2078,4376.9,4376.0,3.443]
[1756596625836,0.2907,4377.4,4376.8,0.0012]
[1756596626031,0.2907,4377.4,4377.3,0.0012]
[1756596626236,0.4781,4377.4,4377.3,0.2352]
[1756596627238,0.2907,4377.4,4377.3,0.2352]
[1756596628940,0.2907,4378.4,4377.3,0.2352]
[1756596629141,0.4781,4377.8,4377.7,3.209]
[1756596629337,0.4781,4377.8,4377.7,3.443]
[1756596630546,0.2907,4377.8,4377.7,3.443]
[1756596631755,0.2907,4378.6,4377.7,3.443]
[1756596631950,3.2078,4378.7,4377.7,3.443]
[1756596632340,0.2907,4378.6,4377.7,3.443]
[1756596633250,3.2078,4378.7,4377.7,3.443]
[1756596633846,3.2078,4377.8,4376.5,2.03825377]
[1756596634146,3.2078,4376.6,4374.4,0.4846]
[1756596634351,3.2078,4374.7,4373.3,0.2972]
[1756596634651,3.2078,4374.2,4373.7,1.63004686]
[1756596634851,3.2078,4374.2,4373.2,3.2078]
[1756596634852,3.2078,4374.2,4373.3,0.2972]
[1756596635051,3.2078,4374.2,4373.7,1.81744686]
[1756596635255,3.2078,4374.2,4374.1,0.1874]
[1756596635447,3.2078,4374.2,4374.1,2.11464686]
[1756596636252,3.2078,4374.2,4373.9,0.2972]
[1756596636454,3.2078,4374.2,4373.8,1.63004686]
[1756596636754,0.21226309,4374.1,4373.8,1.63004686]
[1756596636953,3.2078,4374.2,4373.6,0.4254]
[1756596636954,0.21226309,4374.0,4373.6,0.4254]
[1756596637156,0.21226309,4373.9,4373.8,0.4846]
[1756596637354,3.42006309,4373.9,4373.8,0.4846]
[1756596638052,3.42006309,4373.9,4373.6,0.435]
[1756596638247,3.2078,4373.9,4373.6,0.5078]
[1756596638652,0.21212095,4373.8,4373.7,0.5078]
[1756596638852,0.21212095,4373.8,4373.7,2.13784686]
[1756596639261,0.21211511,4373.8,4373.7,2.13784686]
[1756596641956,0.21197863,4373.8,4373.7,6.13784686]
[1756596643356,3.2078,4374.4,4373.7,6.13784686]
[1756596643552,0.21188419,4374.3,4373.8,0.3108]
[1756596643752,0.21188419,4374.2,4374.1,0.197]
[1756596643958,0.21188419,4374.2,4374.1,0.5078]
[1756596645253,0.4183,4375.6,4375.5,0.5078]
[1756596646363,0.4183,4375.6,4375.5,0.197]
[1756596646559,0.2062,4375.3,4375.2,0.5078]
[1756596646759,0.5052,4375.3,4375.2,0.5078]
[1756596648566,0.5052,4375.3,4374.4,3.2078]
[1756596648766,0.5052,4374.6,4374.5,0.7448]
[1756596651274,3.5068,4375.0,4374.6,0.3108]
[1756596651478,3.713,4375.0,4374.9,0.197]
[1756596651773,3.713,4375.0,4374.9,0.5078]
[1756596652168,3.713,4375.0,4374.6,0.3108]
[1756596652368,0.2062,4374.8,4374.7,0.237]
[1756596652569,0.5052,4374.8,4374.7,0.7448]
[1756596653571,0.5052,4374.8,4374.7,0.5078]
[1756596657480,0.712967,4374.8,4374.7,0.5078]
[1756596659076,0.712967,4374.8,4374.1,3.2078]
[1756596659277,0.5052,4374.3,4374.2,0.434]
[1756596659478,0.207767,4374.3,4374.2,0.434]
[1756596659671,0.20800322,4374.3,4374.2,0.434]
[1756596659881,3.2078,4375.0,4374.3,0.3108]
[1756596660180,0.5052,4374.7,4374.6,0.5078]
[1756596660379,0.71320352,4374.7,4374.6,0.5078]
[1756596661777,0.41420352,4374.7,4374.6,0.5078]
[1756596662081,0.20800352,4374.7,4374.6,0.5078]
[1756596662384,0.71320352,4374.7,4374.6,0.5078]
[1756596662881,0.71320352,4374.7,4374.1,3.9516]
[1756596662882,0.5052,4374.2,4374.1,3.9516]
[1756596663180,0.5052,4374.2,4373.4,32.922]
[1756596663181,0.71320352,4374.2,4373.9,0.236]
[1756596663385,0.5052,4374.0,4373.9,0.236]
[1756596663586,0.71320352,4374.0,4373.9,0.236]
[1756596663780,0.71320352,4374.0,4373.9,0.5078]
[1756596665582,0.299,4373.6,4373.2,0.3108]
[1756596665782,0.5052,4373.3,4373.2,0.5078]
[1756596665983,0.71443412,4373.3,4373.2,0.7438]
[1756596666390,0.41543412,4373.3,4373.2,0.7438]
[1756596666591,0.20923412,4373.3,4373.2,0.7438]
[1756596669290,0.4859,4373.4,4373.3,0.4832]
[1756596669493,0.69511421,4373.4,4373.3,0.4832]
[1756596669994,0.69511421,4373.4,4373.3,0.7192]
[1756596670186,0.69509049,4373.4,4373.3,0.7192]
[1756596670693,0.40659049,4373.4,4373.3,0.7192]
[1756596671392,0.20919049,4373.4,4373.3,0.7192]
[1756596672492,0.69509049,4373.4,4373.3,0.7192]
[1756596677094,0.69509049,4373.4,4373.0,0.2827]
[1756596677302,0.4859,4373.4,4373.3,0.236]
[1756596677502,0.69500122,4373.4,4373.3,0.236]
[1756596678304,0.69500122,4373.4,4373.3,0.7192]
[1756596678897,0.69500122,4373.4,4373.3,0.4832]
[1756596679604,0.2885,4373.3,4372.5,0.2827]
[1756596679803,0.4859,4372.6,4372.5,0.4832]
[1756596680104,0.6959365,4372.6,4372.5,0.4832]
[1756596681300,0.2885,4372.5,4372.2,0.2827]
[1756596681502,0.4859,4372.3,4372.2,0.7192]
[1756596681700,0.6959365,4372.3,4372.2,0.7192]
[1756596687211,0.6959365,4372.3,4372.2,0.4832]
[1756596687410,0.6959365,4372.3,4372.2,0.7182]
[1756596689715,0.6959365,4372.3,4372.2,0.235]
[1756596690716,0.4859,4372.3,4372.2,0.235]
[1756596690913,0.69584773,4372.3,4372.2,0.235]
[1756596692405,0.69584773,4372.3,4372.2,0.7182]
[1756596692610,0.69584773,4372.3,4372.2,0.4832]
[1756596692810,0.69584773,4372.3,4372.2,0.7182]
[1756596695907,0.40734773,4372.3,4372.2,0.7182]
[1756596696112,0.40734773,4372.3,4372.2,0.4832]
[1756596696113,0.69584773,4372.3,4372.2,0.4832]
[1756596696313,0.69584773,4372.3,4372.2,0.7182]
[1756596700416,0.69584773,4372.3,4372.2,0.4832]
[1756596700622,0.3048,4372.2,4372.1,0.235]
[1756596700812,0.70494773,4372.2,4372.1,0.7288]
[1756596701413,0.495,4372.2,4372.1,0.7288]
[1756596701617,0.69495058,4372.2,4372.1,0.7288]
[1756596707029,0.69495058,4372.2,4372.1,0.4938]
[1756596707535,0.495,4371.4,4371.3,0.4938]
[1756596707724,0.69495058,4371.4,4371.3,0.4938]
[1756596708230,0.69495058,4371.4,4371.3,0.7288]
[1756596709023,0.495,4371.3,4371.2,0.7288]
[1756596709331,0.495,4370.8,4370.7,33.233]
[1756596709626,0.69495058,4370.8,4370.7,33.233]
[1756596709831,0.69495058,4370.8,4370.7,33.468]
[1756596711832,0.69495058,4370.8,4370.7,0.7288]
[1756596712435,0.69780749,4370.8,4370.7,0.7288]
[1756596713224,0.20280749,4370.8,4370.7,0.7288]
[1756596714032,0.20280749,4370.8,4370.7,0.4938]
[1756596714227,0.20280749,4370.8,4370.7,0.7288]
[1756596715533,0.20280749,4370.8,4370.7,0.95759]
[1756596715735,0.1141,4371.0,4370.8,0.294]
[1756596715934,0.1141,4371.0,4370.9,0.1998]
[1756596716233,0.1141,4371.0,4370.9,0.4938]
[1756596721932,0.6091,4371.0,4370.9,0.4938]
[1756596722335,0.6091,4371.0,4370.9,0.7278]
[1756596722741,0.3043,4371.0,4370.9,0.7278]
[1756596723140,0.6091,4371.0,4370.9,0.7278]
[1756596724842,0.1141,4371.0,4370.9,0.7278]
[1756596725143,0.6091,4371.0,4370.9,0.7278]
[1756596727138,0.6091,4371.0,4370.9,0.4938]
[1756596727344,0.6091,4371.0,4370.9,0.7278]
[1756596727843,0.79879181,4371.0,4370.9,0.4938]
[1756596728046,0.79879181,4371.0,4370.9,0.7278]
[1756596728344,0.30379181,4371.0,4370.9,0.7278]
[1756596729835,0.30384075,4371.0,4370.9,0.7278]
[1756596731747,0.78654075,4371.0,4370.9,0.4938]
[1756596731943,0.78654075,4371.0,4370.9,0.7278]
[1756596732150,0.67244075,4371.0,4370.9,0.7278]
[1756596732650,0.67253135,4371.0,4370.9,0.4938]
[1756596732838,4.18983135,4371.0,4370.7,3.2078]
[1756596733048,4.18983135,4371.0,4370.5,1.14402078]
[1756596733049,0.1999,4370.6,4370.5,1.14402078]
[1756596733245,0.67253135,4370.6,4370.5,1.37802078]
[1756596733445,0.67258033,4370.6,4370.5,1.37802078]
[1756596735442,0.67258033,4370.6,4370.5,1.88072078]
[1756596736144,0.18988033,4370.6,4370.5,1.88072078]
[1756596738352,0.4827,4370.7,4370.6,0.5027]
[1756596739853,0.1141,4370.8,4370.6,0.2027]
[1756596740049,0.1141,4370.8,4370.5,4.58582078]
[1756596740050,0.1141,4370.8,4370.7,0.5027]
[1756596740454,0.1141,4370.8,4370.7,0.73149]
[1756596740852,0.1141,4370.8,4370.7,0.5027]
[1756596741047,0.1141,4370.8,4370.7,4.73149]
[1756596741759,0.1141,4370.8,4370.7,4.5027]
[1756596742851,0.2828,4371.7,4370.7,4.5027]
[1756596743047,0.4827,4371.7,4371.6,0.5027]
[1756596743252,0.4827,4371.7,4371.6,0.7367]
[1756596745751,0.2828,4372.4,4371.7,0.3]
[1756596745955,0.4827,4372.4,4372.3,0.5027]
[1756596746156,0.4827,4372.4,4372.3,0.7367]
[1756596746556,0.4827,4372.4,4371.2,3.2078]
[1756596746756,3.2078,4372.5,4371.3,0.7367]
[1756596746757,0.4827,4371.4,4371.3,0.7367]
[1756596747061,0.2828,4371.4,4371.3,0.7367]
[1756596747258,3.2078,4372.5,4371.4,0.3]
[1756596747459,0.2828,4372.3,4371.4,0.3]
[1756596748155,0.2828,4372.3,4372.2,0.2027]
[1756596748360,0.4827,4372.3,4372.2,0.2027]
[1756596748561,0.1999,4372.3,4372.0,0.534]
[1756596748761,0.4827,4372.1,4372.0,0.7367]
[1756596750067,0.2828,4372.4,4372.0,0.4367]
[1756596750264,0.1999,4372.4,4372.3,0.2027]
[1756596750466,0.4827,4372.4,4372.3,0.5027]
[1756596755367,0.4827,4372.9,4372.8,0.5027]
[1756596760872,0.1999,4372.9,4372.4,3.2078]
[1756596761072,0.2806,4372.1,4372.0,0.4756]
[1756596761366,0.2806,4372.9,4372.1,0.2861]
[1756596762369,0.4732,4372.9,4372.8,0.1895]
[1756596762568,0.4732,4372.9,4372.8,0.4756]
[1756596768277,0.4732,4373.4,4373.3,0.1895]
[1756596768678,0.4732,4373.4,4373.1,0.2861]
[1756596770583,0.4732,4373.4,4372.5,0.234]
[1756596770783,0.4732,4373.4,4372.6,0.2861]
[1756596772775,0.4732,4373.4,4373.3,0.1895]
[1756596772981,0.4732,4373.4,4373.3,0.4756]
[1756596784397,0.4732,4373.4,4372.7,0.2861]
[1756596784698,0.4732,4373.4,4372.8,0.233]
[1756596785296,0.1926,4372.4,4372.3,0.4756]
[1756596785497,0.4732,4372.4,4372.3,0.7086]
[1756596787003,3.4408,4373.6,4372.4,0.2861]
[1756596787203,1.08646449,4373.5,4372.4,0.2861]
[1756596787405,0.50928,4373.5,4372.4,0.2861]
[1756596787703,0.2997,4373.3,4372.4,0.2861]
[1756596787904,3.2078,4373.1,4372.4,0.2861]
[1756596788105,0.4969,4372.5,4372.4,0.4846]
[1756596790004,3.4408,4373.6,4372.4,0.4846]
[1756596790302,0.87694839,4373.5,4372.5,0.2905]
[1756596790503,0.2997,4373.5,4372.5,0.2905]
[1756596790803,0.2997,4373.5,4372.7,0.2905]
[1756596791404,0.4969,4373.5,4373.4,0.489]
[1756596792106,0.2997,4374.0,4373.5,0.2905]
[1756596793208,0.4969,4374.0,4373.9,0.489]
[1756596793409,0.4969,4374.0,4373.2,0.233]
[1756596793410,0.4969,4374.0,4373.6,0.2905]
[1756596794407,0.4969,4374.0,4373.2,0.233]
[1756596794611,0.4969,4374.0,4373.3,0.2905]
[1756596797109,3.2078,4374.1,4373.9,0.489]
[1756596797411,0.2997,4375.2,4374.4,0.2905]
[1756596797607,0.1972,4374.6,4374.5,0.489]
[1756596797912,0.4969,4374.6,4374.5,0.489]
[1756596798709,0.4969,4374.6,4374.5,0.722]
[1756596798913,0.1972,4374.6,4374.5,0.722]
[1756596799711,0.4969,4374.6,4374.5,0.722]
[1756596801615,0.2997,4374.6,4374.5,0.722]
[1756596803312,0.2997,4375.2,4374.6,0.2905]
[1756596804016,0.4969,4375.2,4375.1,0.1985]
[1756596804716,0.4969,4375.2,4375.1,0.489]
[1756596805519,0.4969,4375.2,4375.1,0.1985]
[1756596806315,0.4969,4375.2,4375.1,0.489]
[1756596809622,0.4969,4375.2,4375.0,0.233]
[1756596813019,0.2997,4375.1,4374.5,0.2905]
[1756596813226,0.4969,4374.9,4374.8,0.233]
[1756596814620,0.4969,4374.9,4374.8,0.722]
[1756596815522,0.2997,4374.9,4374.8,0.722]
[1756596816024,0.4969,4374.9,4374.8,0.722]
[1756596816627,0.2997,4374.9,4374.8,0.722]
[1756596816820,0.2997,4375.2,4374.9,0.2905]
[1756596817125,0.4969,4375.2,4375.1,0.489]